bitfinex-derivatives/quotes_ETHF0:USTF0_20241007
["timestamp","ask_amount","ask_price","bid_price","bid_amount"]
[1728343169742,0.41101,2433.2,2433.0,0.41102]
[1728343170155,0.41101,2433.2,2433.1,4.51356231]
[1728343170449,0.41101,2433.2,2433.1,4.92457231]
[1728343170950,0.41101,2433.2,2433.1,4.51356231]
[1728343171148,0.41101,2433.2,2433.1,4.92457231]
[1728343171351,0.41101,2433.2,2433.1,4.51356231]
[1728343172145,0.41101,2433.2,2433.1,4.92457231]
[1728343172551,0.41101,2433.2,2433.1,4.51356231]
[1728343173874,0.41101,2433.2,2433.1,4.92457231]
[1728343174276,1.02742,2433.4,2433.1,4.92457231]
[1728343174557,0.207,2434.0,2433.9,0.41088]
[1728343174755,2.3533,2434.3,2433.7,3.21]
[1728343174946,0.4108,2434.4,2434.2,0.41082]
[1728343175149,3.2078,2434.6,2433.9,6.4178]
[1728343175347,0.41079,2434.4,2434.3,4.51356231]
[1728343175548,3.21,2434.5,2434.0,4.5622287]
[1728343175746,3.21,2434.1,2433.8,2.4929]
[1728343175940,0.41088,2433.9,2433.8,2.9038]
[1728343176646,0.41087,2434.0,2433.8,2.9038]
[1728343176846,0.41085,2434.1,2433.8,2.9038]
[1728343177154,0.41087,2434.0,2433.8,2.9038]
[1728343177651,3.5343,2434.2,2433.8,2.4929]
[1728343177850,3.5343,2434.2,2433.8,2.9038]
[1728343178051,0.41087,2434.0,2433.8,2.9038]
[1728343178651,2.3533,2434.3,2433.9,3.21]
[1728343178858,0.41085,2434.1,2434.0,0.41086]
[1728343179249,0.41084,2434.2,2434.1,0.41085]
[1728343180146,2.76412,2434.3,2433.9,7.69930349]
[1728343180353,0.41083,2434.2,2434.1,0.41084]
[1728343180554,2.3533,2434.3,2434.1,0.41084]
[1728343180555,2.76412,2434.3,2434.1,0.41084]
[1728343181148,2.4052,2434.4,2433.9,7.69930349]
[1728343181352,0.41079,2434.5,2434.3,0.4108]
[1728343181551,0.41079,2434.5,2434.3,2.9066]
[1728343181752,0.41079,2434.5,2434.3,2.4958]
[1728343182055,0.41079,2434.5,2434.3,2.9066]
[1728343182455,0.41079,2434.4,2434.3,2.4958]
[1728343184058,0.41079,2434.4,2434.3,2.90661]
[1728343185157,0.41079,2434.4,2434.3,2.4958]
[1728343185848,9.77073,2434.6,2433.9,5.6748]
[1728343186052,0.41081,2434.3,2434.2,0.41081]
[1728343186256,0.41081,2434.3,2434.2,4.77120201]
[1728343186459,0.41081,2434.3,2434.2,0.41081]
[1728343187458,9.77073,2434.6,2434.0,2.4285]
[1728343187459,0.41084,2434.2,2434.1,0.41083]
[1728343187657,0.41083,2434.2,2434.1,0.41083]
[1728343187851,0.41083,2434.2,2434.1,4.29144897]
[1728343188043,0.41083,2434.2,2434.1,4.70229897]
[1728343189853,1.02697,2434.5,2434.1,4.29144897]
[1728343190047,0.41082,2434.3,2434.2,0.41083]
[1728343190249,8.7438,2434.6,2434.1,4.29144897]
[1728343190453,1.02695,2434.5,2433.9,0.41087]
[1728343190654,0.41086,2434.0,2433.9,0.41087]
[1728343190955,1.02706,2434.3,2433.8,2.4929]
[1728343190956,0.41088,2433.9,2433.8,2.4929]
[1728343191156,0.41088,2433.9,2433.8,2.9038]
[1728343191461,0.41088,2433.9,2433.8,7.34388409]
[1728343192163,2.3613,2434.1,2433.8,6.93298409]
[1728343192349,0.41087,2434.0,2433.9,0.41088]
[1728343193154,0.41087,2434.0,2433.8,7.34387409]
[1728343193963,0.41088,2433.9,2433.8,4.44008409]
[1728343194164,0.41088,2434.0,2433.8,4.85097409]
[1728343194662,0.41088,2433.9,2433.8,4.85097409]
[1728343196865,3.38844,2434.1,2433.8,4.85097409]
[1728343197063,0.41086,2434.0,2433.9,0.41088]
[1728343197363,0.41086,2434.0,2433.8,4.85096409]
[1728343197765,0.41086,2434.0,2433.8,4.44008409]
[1728343197963,0.41086,2434.0,2433.9,0.41088]
[1728343198162,0.41086,2434.0,2433.8,4.85096409]
[1728343198859,0.41086,2434.0,2433.9,0.41088]
[1728343200458,46.29716021,2448.2,2433.8,4.44008409]
[1728343200767,0.41085,2434.1,2434.0,0.41085]
[1728343201067,0.41085,2434.1,2433.8,4.44008409]
[1728343201068,4.7435,2434.5,2433.8,7.65008409]
[1728343201368,1.02699,2434.4,2434.0,4.45911819]
[1728343201555,1.02704,2434.3,2433.9,4.45911819]
[1728343201860,1.02708,2434.2,2433.7,7.5614]
[1728343202256,0.41087,2434.0,2433.9,4.43388842]
[1728343202458,0.41088,2433.9,2433.8,4.84478842]
[1728343202657,1.02708,2434.2,2433.7,5.0235]
[1728343202866,0.4109,2433.8,2433.7,5.4344]
[1728343203063,3.37764,2434.1,2433.7,5.4344]
[1728343203266,0.41089,2433.9,2433.8,0.4109]
[1728343203667,3.2078,2434.3,2433.7,9.75297072]
[1728343203862,0.41083,2434.2,2434.0,0.41085]
[1728343204265,0.41085,2434.1,2434.0,0.41085]
[1728343204864,0.41084,2434.2,2434.0,0.41085]
[1728343205265,0.41084,2434.2,2434.1,0.41085]
[1728343205667,0.41084,2434.2,2433.8,7.93947072]
[1728343205868,0.41084,2434.2,2433.9,0.41088]
[1728343206070,0.41084,2434.2,2434.1,0.41085]
[1728343206464,5.6153,2434.3,2434.0,0.41085]
[1728343206465,0.41085,2434.1,2434.0,0.41085]
[1728343206770,1.02708,2434.2,2433.8,4.72947072]
[1728343207073,0.41087,2434.0,2433.9,0.41087]
[1728343207768,0.41086,2434.1,2434.0,0.41086]
[1728343207976,0.41083,2434.2,2433.8,7.93947072]
[1728343208181,5.6153,2434.3,2434.0,0.41085]
[1728343208468,0.41085,2434.1,2434.0,0.41085]
[1728343208978,6.64235,2434.3,2433.8,7.93947072]
[1728343209271,6.02612,2434.3,2434.1,0.41083]
[1728343209772,6.02612,2434.3,2434.2,0.41083]
[1728343209972,6.02612,2434.3,2433.8,8.96671072]
[1728343209973,0.41084,2434.2,2434.1,0.41084]
[1728343210571,0.41083,2434.2,2434.1,0.41083]
[1728343210770,4.23485,2434.3,2433.7,5.0235]
[1728343210976,0.41089,2433.9,2433.8,0.41089]
[1728343211168,0.41089,2433.9,2433.8,4.32109196]
[1728343211371,0.41089,2433.9,2433.4,3.21]
[1728343211372,4.1088,2433.9,2433.4,2.3868]
[1728343211571,6.4178,2434.0,2433.4,2.3868]
[1728343211572,0.41095,2433.5,2433.4,2.3868]
[1728343211772,0.41094,2433.6,2433.5,4.32109196]
[1728343211972,0.41094,2433.6,2433.4,7.11884196]
[1728343212281,0.41095,2433.5,2433.4,2.3868]
[1728343212482,0.41091,2433.7,2433.5,5.17591394]
[1728343212771,0.41091,2433.8,2433.6,0.41092]
[1728343212976,1.02715,2434.1,2433.6,0.41092]
[1728343212977,0.41088,2433.9,2433.6,0.41092]
[1728343213176,4.8271,2434.0,2433.6,0.41092]
[1728343213483,0.41091,2433.8,2433.6,0.41092]
[1728343214682,0.41092,2433.7,2433.6,0.41092]
[1728343214884,0.41092,2433.7,2433.4,5.5968]
[1728343215083,3.21,2433.5,2433.1,3.2078]
[1728343215286,4.52053,2433.6,2432.9,1.0625745]
[1728343215287,0.41101,2433.1,2433.0,2.4922]
[1728343215480,0.41101,2433.2,2433.0,2.4922]
[1728343215673,8.0676,2433.4,2433.0,2.4922]
[1728343215981,0.41101,2433.1,2433.0,2.4922]
[1728343216188,0.41104,2433.0,2432.8,0.41105]
[1728343216385,0.41106,2432.9,2432.8,0.41106]
[1728343216886,0.41106,2432.9,2432.7,0.41107]
[1728343217284,3.21,2433.3,2432.7,4.54178489]
[1728343217589,6.4178,2433.1,2432.8,0.41106]
[1728343217787,3.61882,2433.1,2432.9,0.41104]
[1728343218085,0.41101,2433.1,2433.0,0.41103]
[1728343218288,0.411,2433.2,2433.0,0.41103]
[1728343218493,0.411,2433.2,2433.1,2.75471]
[1728343218680,0.411,2433.2,2433.1,5.31051]
[1728343218876,0.411,2433.2,2433.1,4.8995]
[1728343219181,4.8598,2433.4,2433.1,5.31051]
[1728343219387,0.41097,2433.4,2433.1,4.8995]
[1728343219575,0.41092,2433.7,2433.5,0.41094]
[1728343219987,0.41092,2433.7,2433.6,2.3421]
[1728343223188,0.41092,2433.7,2433.6,5.28713]
[1728343223582,0.41092,2433.7,2433.6,4.8762]
[1728343225586,0.41092,2433.7,2433.6,5.28713]
[1728343225990,0.41092,2433.7,2433.6,4.8762]
[1728343227684,0.41092,2433.7,2433.6,5.28713]
[1728343228985,0.41092,2433.7,2433.6,4.8762]
[1728343233500,0.41092,2433.7,2433.6,5.28713]
[1728343234394,0.41092,2433.7,2433.6,4.8762]
[1728343235102,0.41092,2433.7,2433.6,5.28713]
[1728343235291,0.4109,2433.8,2433.7,0.4109]
[1728343235491,0.4109,2433.8,2433.7,0.41091]
[1728343236792,0.41088,2433.9,2433.6,5.28712]
[1728343236989,0.41091,2433.7,2433.6,5.28712]
[1728343238392,0.41091,2433.7,2433.6,5.28713]
[1728343238824,2.4495,2434.0,2433.6,4.8762]
[1728343238999,0.4109,2433.8,2433.7,0.41091]
[1728343239698,3.2078,2434.1,2433.7,8.86272799]
[1728343239899,0.41085,2434.1,2434.0,0.41086]
[1728343240490,2.3965,2434.3,2433.8,3.21]
[1728343240694,7.9941,2434.5,2433.8,3.21]
[1728343240695,0.41083,2434.2,2433.9,0.41088]
[1728343240895,0.41083,2434.2,2434.0,2.82285]
[1728343241095,1.02701,2434.4,2434.1,2.5576]
[1728343241299,1.02701,2434.4,2433.6,1.0625745]
[1728343241300,0.41091,2433.7,2433.6,1.0625745]
[1728343241496,7.3434,2434.5,2433.5,4.9696]
[1728343241497,0.41093,2433.6,2433.5,4.9696]
[1728343241924,1.02725,2433.8,2433.5,9.80215536]
[1728343242099,0.41093,2433.7,2433.5,9.80215536]
[1728343243005,1.02725,2433.8,2433.5,9.80215536]
[1728343243297,0.41093,2433.6,2433.5,9.80215536]
[1728343243502,0.41093,2433.6,2433.5,9.39120536]
[1728343244095,0.41093,2433.6,2433.5,9.80215536]
[1728343244501,0.41093,2433.6,2433.5,9.39120536]
[1728343244705,0.41093,2433.6,2433.5,9.80215536]
[1728343245207,0.41093,2433.6,2433.5,9.39120536]
[1728343246591,0.41093,2433.6,2433.5,9.80215536]
[1728343247305,0.41093,2433.7,2433.5,9.80215536]
[1728343247603,1.02725,2433.8,2433.5,9.80215536]
[1728343247604,0.41093,2433.6,2433.5,9.80215536]
[1728343248006,0.41093,2433.6,2433.5,9.39120536]
[1728343248702,0.41093,2433.6,2433.5,4.42160536]
[1728343248904,0.41093,2433.6,2433.3,5.5254]
[1728343248905,0.41096,2433.4,2433.3,4.903]
[1728343249103,0.41096,2433.4,2433.3,2.4059]
[1728343249307,6.278,2433.5,2433.1,2.4971]
[1728343249518,0.41099,2433.3,2433.2,0.41099]
[1728343249919,0.41099,2433.3,2433.2,4.45425988]
[1728343250203,5.5896,2433.3,2432.9,1.0625745]
[1728343250404,4.2375,2433.2,2432.8,2.4971]
[1728343250600,0.41105,2432.9,2432.8,2.4971]
[1728343251007,2.3182,2433.1,2432.6,2.3396]
[1728343251209,0.41108,2432.7,2432.6,2.3396]
[1728343252116,0.41108,2432.8,2432.6,2.7507]
[1728343253220,4.135,2433.4,2432.7,4.1104]
[1728343253508,0.41102,2433.1,2432.9,0.41104]
[1728343253712,2.3182,2433.3,2432.8,0.41106]
[1728343254018,2.3182,2433.3,2432.9,4.45236654]
[1728343254019,0.41103,2433.1,2432.9,4.45236654]
[1728343254198,0.41103,2433.1,2432.9,4.86340654]
[1728343254404,2.3738,2433.2,2432.9,4.45236654]
[1728343254705,0.41102,2433.1,2432.9,4.86340654]
[1728343255402,4.7687,2433.2,2432.6,8.7574]
[1728343255600,2.3182,2433.3,2433.2,0.411]
[1728343255811,3.2078,2433.5,2433.2,0.411]
[1728343255812,3.2078,2433.5,2433.4,0.41096]
[1728343256112,0.207,2434.2,2433.7,0.41091]
[1728343256113,0.41089,2433.9,2433.7,0.41091]
[1728343256609,4.6677,2434.1,2433.4,10.25635729]
[1728343256809,4.6677,2434.1,2433.6,0.41093]
[1728343257008,0.41089,2433.9,2433.7,0.41091]
[1728343257211,4.6677,2434.1,2433.5,0.41093]
[1728343257212,0.4109,2433.8,2433.5,0.41093]
[1728343257414,0.4109,2433.8,2433.6,0.41092]
[1728343257720,0.41089,2433.9,2433.6,4.73148776]
[1728343258012,0.4109,2433.8,2433.6,4.73148776]
[1728343259610,0.41089,2433.9,2433.7,0.41091]
[1728343259909,0.4109,2433.8,2433.6,4.73148776]
[1728343260109,4.6677,2434.1,2433.6,4.32056776]
[1728343260510,47.2178,2434.5,2433.6,4.32056776]
[1728343260709,47.2178,2434.5,2434.0,0.41086]
[1728343260710,4.9573,2434.4,2434.0,0.41086]
[1728343260917,0.41085,2434.1,2434.0,0.41086]
[1728343261106,0.41082,2434.3,2434.1,0.41084]
[1728343261307,4.9573,2434.4,2433.9,2.4539]
[1728343261508,5.3681,2434.4,2434.2,0.41082]
[1728343261913,0.41083,2434.2,2434.0,0.41085]
[1728343262114,0.41083,2434.2,2433.9,7.08103057]
[1728343262308,0.41083,2434.2,2434.0,0.41085]
[1728343262512,4.9573,2434.4,2434.1,0.41085]
[1728343263012,0.41084,2434.2,2433.9,7.08103057]
[1728343263411,4.9573,2434.4,2434.1,0.41085]
[1728343263606,4.9573,2434.4,2433.9,7.08103057]
[1728343263807,4.9573,2434.4,2434.0,0.41086]
[1728343264007,0.41086,2434.1,2433.9,5.03800057]
[1728343264205,0.41086,2434.0,2433.9,5.03800057]
[1728343264408,0.41086,2434.1,2433.9,5.03800057]
[1728343265212,0.41083,2434.3,2434.1,0.41084]
[1728343265817,0.41083,2434.3,2434.2,0.41083]
[1728343266120,4.9573,2434.4,2434.2,0.41083]
[1728343266121,5.3681,2434.4,2434.2,0.41083]
[1728343266438,5.36811,2434.4,2434.2,0.41083]
[1728343266607,4.9573,2434.4,2434.2,0.41083]
[1728343266813,0.41081,2434.3,2434.2,0.41083]
[1728343267014,0.41081,2434.3,2434.1,0.41084]
[1728343268416,4.9573,2434.4,2433.8,5.28679]
[1728343268417,0.41088,2433.9,2433.8,5.28679]
[1728343268612,0.41087,2434.0,2433.9,0.41088]
[1728343268813,0.41087,2434.0,2433.9,4.7359784]
[1728343269016,4.2371,2434.2,2433.8,10.0227684]
[1728343269220,4.2371,2434.2,2433.8,5.28679]
[1728343269221,0.41088,2433.9,2433.8,5.28679]
[1728343269425,0.41087,2434.0,2433.8,4.8759]
[1728343269716,0.41087,2434.0,2433.9,4.29613874]
[1728343269922,0.41088,2433.9,2433.8,4.8759]
[1728343270125,2.81578,2433.9,2433.8,4.8759]
[1728343271022,2.81578,2433.9,2433.8,5.2868]
[1728343271315,0.41088,2433.9,2433.8,5.2868]
[1728343271514,0.41088,2433.9,2433.8,4.8759]
[1728343271714,0.41095,2433.5,2433.4,2.5167]
[1728343271915,0.41095,2433.5,2433.4,4.9194]
[1728343272226,0.41093,2433.6,2433.5,4.47820717]
[1728343272413,8.8227,2433.9,2433.4,9.39760717]
[1728343272723,0.41092,2433.7,2433.6,0.41093]
[1728343272926,0.41092,2433.7,2433.5,7.0618495]
[1728343273126,0.41093,2433.6,2433.5,7.0618495]
[1728343274022,8.8227,2433.9,2433.5,7.0618495]
[1728343274328,0.41092,2433.7,2433.5,7.4727895]
[1728343275025,0.41092,2433.7,2433.5,4.5755495]
[1728343275026,10.93753,2433.6,2433.5,4.5755495]
[1728343275218,0.41103,2433.0,2432.9,2.5378]
[1728343275420,0.41105,2432.9,2432.8,2.4009]
[1728343276128,0.41108,2432.7,2432.6,2.5378]
[1728343276519,0.41108,2432.8,2432.6,2.9489]
[1728343276723,0.41108,2432.8,2432.7,0.41108]
[1728343276918,0.41108,2432.8,2432.6,2.94889]
[1728343277219,2.4871,2432.9,2432.7,0.41108]
[1728343277431,2.4871,2432.9,2432.6,2.5378]
[1728343277616,0.41106,2432.8,2432.7,0.41108]
[1728343278022,0.41101,2433.2,2433.0,0.41102]
[1728343278424,0.41101,2433.2,2433.1,2.4952]
[1728343278634,0.41101,2433.2,2433.1,2.90621]
[1728343278828,0.41101,2433.2,2433.1,2.4952]
[1728343280134,0.41103,2433.0,2432.9,2.4525]
[1728343281037,0.41103,2433.0,2432.9,2.86355]
[1728343282234,3.2078,2433.6,2432.9,20.53477815]
[1728343282436,0.41095,2433.5,2433.4,0.41096]
[1728343282835,0.41095,2433.5,2433.4,5.17283815]
[1728343283038,3.61874,2433.6,2433.5,0.41095]
[1728343283540,0.41095,2433.5,2433.4,5.17282815]
[1728343283743,3.61874,2433.6,2433.5,0.41095]
[1728343283934,0.41095,2433.5,2433.4,5.17282815]
[1728343284541,3.61874,2433.6,2433.5,0.41095]
[1728343284737,3.2078,2433.6,2433.4,4.76187815]
[1728343285042,3.2078,2433.6,2433.5,0.41095]
[1728343285431,3.2078,2433.6,2433.5,2.76545]
[1728343285629,3.61873,2433.6,2433.5,2.76545]
[1728343285834,1.02722,2433.9,2433.5,2.3545]
[1728343286034,1.02722,2433.9,2433.7,0.4109]
[1728343286035,0.4109,2433.9,2433.7,0.4109]
[1728343286238,0.4109,2433.9,2433.8,2.8283]
[1728343286438,0.4109,2433.9,2433.8,7.36746552]
[1728343287439,0.4109,2433.9,2433.8,6.95656552]
[1728343290648,2.4551,2434.0,2433.8,6.95656552]
[1728343290846,0.41088,2433.9,2433.8,7.36745552]
[1728343291045,0.41088,2433.9,2433.8,6.95656552]
[1728343293641,3.21,2434.1,2433.8,6.95656552]
[1728343293948,0.41088,2433.9,2433.8,6.95656552]
[1728343294245,0.41087,2434.0,2433.9,0.41087]
[1728343294438,0.41087,2434.0,2433.9,2.82957]
[1728343294641,0.41085,2434.1,2433.9,2.4187]
[1728343294943,11.48602,2434.6,2434.2,0.41081]
[1728343295139,11.48602,2434.6,2434.0,2.94595]
[1728343295439,11.48602,2434.6,2433.9,7.12943227]
[1728343295440,3.21,2434.1,2433.8,2.4174]
[1728343295742,0.41088,2433.9,2433.8,2.4174]
[1728343296146,0.41088,2433.9,2433.5,4.9538]
[1728343296147,0.41093,2433.6,2433.5,2.4187]
[1728343296345,10.3523,2434.0,2433.5,2.4187]
[1728343296572,1.02722,2433.9,2433.5,2.4187]
[1728343296844,1.02722,2433.9,2433.5,2.82964]
[1728343296845,0.41093,2433.6,2433.5,2.82964]
[1728343297245,0.41093,2433.6,2433.5,2.4187]
[1728343297445,0.41093,2433.6,2433.5,2.82965]
[1728343297837,0.41093,2433.6,2432.9,0.41104]
[1728343297838,0.41102,2433.1,2432.9,0.41104]
[1728343298044,0.41101,2433.2,2432.9,5.1093]
[1728343298250,0.41101,2433.2,2433.0,4.48737428]
[1728343298552,0.41097,2433.4,2433.2,0.411]
[1728343299051,0.41098,2433.3,2433.2,0.411]
[1728343299647,0.41098,2433.3,2433.1,0.411]
[1728343299852,0.41098,2433.3,2433.0,4.48737428]
[1728343300051,0.41098,2433.3,2433.2,0.411]
[1728343300248,0.41098,2433.3,2433.1,0.411]
[1728343301051,4.6823,2433.5,2433.1,0.411]
[1728343301052,0.411,2433.2,2433.1,0.411]
[1728343301948,4.6823,2433.5,2433.0,4.48737428]
[1728343302256,0.41099,2433.3,2433.1,4.70698447]
[1728343302450,0.41099,2433.3,2433.1,0.411]
[1728343302646,0.41099,2433.3,2433.2,4.56472631]
[1728343303051,0.41099,2433.3,2433.1,4.97572631]
[1728343303352,3.3439,2433.5,2433.2,4.56472631]
[1728343303550,0.41098,2433.3,2433.2,4.56472631]
[1728343303753,1.02743,2433.4,2433.1,4.56470128]
[1728343303954,1.02743,2433.4,2432.9,5.52034]
[1728343304149,3.2078,2433.9,2433.4,0.41095]
[1728343304454,1.02725,2433.8,2433.5,4.26696602]
[1728343304755,0.41093,2433.6,2433.5,4.26696602]
[1728343306559,0.41092,2433.7,2433.5,4.67790602]
[1728343307245,8.0331,2434.0,2433.5,4.26696602]
[1728343307246,0.41091,2433.8,2433.5,4.26696602]
[1728343307453,0.41091,2433.8,2433.7,0.41091]
[1728343307663,0.41092,2433.7,2433.5,4.26696602]
[1728343307854,0.41093,2433.6,2433.5,4.67790602]
[1728343308057,0.41092,2433.7,2433.5,4.67790602]
[1728343308262,0.41091,2433.8,2433.6,0.41093]
[1728343308559,0.41091,2433.8,2433.7,4.38261292]
[1728343313150,0.41091,2433.8,2433.7,4.79352292]
[1728343313360,0.41091,2433.8,2433.7,4.38261292]
[1728343325071,6.55508,2434.0,2433.7,4.38261292]
[1728343325279,0.41085,2434.1,2434.0,0.41086]
[1728343325577,1.02702,2434.4,2434.1,0.41083]
[1728343325578,3.35962,2434.4,2434.1,0.41083]
[1728343325873,1.0271,2434.2,2433.8,9.37128265]
[1728343326175,0.41087,2434.0,2433.9,2.78407]
[1728343326567,0.41087,2434.0,2433.9,7.13452627]
[1728343326877,3.35962,2434.4,2433.9,6.72365627]
[1728343327177,0.41082,2434.3,2434.2,0.41082]
[1728343327374,2.3326,2434.4,2434.2,0.41082]
[1728343327675,2.74341,2434.4,2434.2,0.41082]
[1728343327869,0.41081,2434.3,2434.2,0.41082]
[1728343328066,2.3326,2434.4,2434.2,0.41082]
[1728343328370,0.41075,2434.7,2434.5,0.41077]
[1728343328572,0.41075,2434.7,2434.6,2.3732]
[1728343330278,6.5786,2434.9,2434.3,4.8543]
[1728343330569,0.41079,2434.4,2434.3,5.26511]
[1728343330976,0.41079,2434.4,2434.3,9.74808151]
[1728343332175,0.41079,2434.4,2434.3,4.48297151]
[1728343332370,1.02694,2434.6,2433.9,3.21]
[1728343332371,3.2078,2434.6,2433.9,4.8477]
[1728343332571,1.02694,2434.6,2433.9,9.08489]
[1728343332878,0.41081,2434.4,2434.3,0.41081]
[1728343333380,0.41082,2434.3,2434.2,0.41082]
[1728343333768,0.41083,2434.2,2434.1,4.30828136]
[1728343333970,0.41086,2434.0,2433.9,5.25858]
[1728343334375,0.41086,2434.0,2433.9,9.56686136]
[1728343334575,0.41086,2434.0,2433.9,4.30828136]
[1728343334881,0.41099,2433.3,2433.1,0.41101]
[1728343335382,0.411,2433.2,2433.0,0.41102]
[1728343335585,3.21,2433.4,2432.9,4.9785]
[1728343335776,3.62097,2433.4,2433.2,0.411]
[1728343335998,3.62097,2433.4,2433.0,4.55171659]
[1728343335999,3.21,2433.4,2433.1,0.411]
[1728343336284,0.41099,2433.3,2433.1,0.411]
[1728343336579,0.41099,2433.3,2433.0,4.55171659]
[1728343336883,0.41099,2433.3,2433.1,0.411]
[1728343337182,0.41097,2433.4,2433.2,0.41099]
[1728343337479,4.52058,2433.3,2433.2,4.41294322]
[1728343337677,4.52058,2433.3,2433.1,0.41101]
[1728343337678,0.411,2433.3,2433.1,0.41101]
[1728343338383,0.41097,2433.4,2433.2,0.411]
[1728343338580,4.23731,2433.7,2432.8,4.8371]
[1728343338784,40.8,2433.8,2432.9,11.77658703]
[1728343338985,13.9344,2433.9,2432.9,11.77658703]
[1728343338986,0.41096,2433.5,2433.3,4.74214703]
[1728343339181,0.41096,2433.5,2433.3,0.41097]
[1728343339586,14.96162,2433.9,2432.9,7.44541]
[1728343339781,0.41093,2433.7,2433.5,0.41095]
[1728343340086,0.41097,2433.4,2433.2,0.41098]
[1728343340286,1.02725,2433.8,2433.0,4.75351822]
[1728343340481,13.9344,2433.9,2433.5,0.41094]
[1728343340681,0.41092,2433.7,2433.5,0.41094]
[1728343340882,11.4349,2433.9,2433.2,2.5311]
[1728343341084,0.41096,2433.5,2433.3,2.94356]
[1728343341282,0.41094,2433.6,2433.5,0.41094]
[1728343341487,1.02725,2433.8,2433.4,2.4736]
[1728343341790,0.41095,2433.5,2433.4,2.4736]
[1728343342090,1.02725,2433.8,2433.5,4.42468243]
[1728343342091,0.41094,2433.6,2433.5,4.42468243]
[1728343342587,0.41094,2433.6,2433.4,2.88456]
[1728343343109,0.41094,2433.6,2433.5,4.42900196]
[1728343343292,11.4349,2433.9,2433.6,0.41093]
[1728343343490,5.0171,2433.9,2433.5,4.42900196]
[1728343343789,0.41092,2433.7,2433.5,4.83993196]
[1728343343981,3.2078,2434.2,2433.5,7.63900196]
[1728343344181,2.4685,2434.3,2434.2,0.41083]
[1728343344388,2.4685,2434.3,2433.7,3.21]
[1728343344583,0.41084,2434.2,2434.0,0.41085]
[1728343344785,2.4685,2434.3,2433.9,6.95442607]
[1728343345088,0.41083,2434.2,2434.1,4.45022607]
[1728343345287,2.4685,2434.3,2434.0,4.45022607]
[1728343345479,2.4685,2434.3,2434.0,2.83805]
[1728343345676,0.41085,2434.1,2434.0,2.83805]
[1728343345880,0.41083,2434.2,2434.1,0.41084]
[1728343346385,2.4685,2434.3,2434.0,7.27069644]
[1728343346386,0.41085,2434.1,2434.0,7.27069644]
[1728343346616,0.41085,2434.1,2434.0,4.43264644]
[1728343346781,0.41086,2434.0,2433.9,2.5042]
[1728343347885,0.41086,2434.0,2433.9,2.91508]
[1728343349482,0.41089,2433.9,2433.7,2.8381]
[1728343349685,0.41087,2434.0,2433.8,0.41088]
[1728343349886,0.41087,2434.0,2433.8,4.97431569]
[1728343350203,6.70556,2434.3,2433.7,2.4272]
[1728343350204,1.02712,2434.1,2433.7,2.4272]
[1728343350388,0.4109,2433.8,2433.7,2.4272]
[1728343351087,13.3188,2433.8,2433.2,2.5496]
[1728343351282,3.21,2433.3,2432.9,2.4505]
[1728343351485,0.411,2433.2,2433.1,0.41101]
[1728343352183,0.411,2433.2,2433.0,4.7864289]
[1728343352390,3.21,2433.5,2433.1,4.3754089]
[1728343352584,0.41097,2433.4,2433.2,0.41099]
[1728343352792,5.5963,2433.7,2433.0,4.74694272]
[1728343353090,5.5963,2433.7,2432.9,6.68591]
[1728343353091,5.5963,2433.7,2433.2,4.74694272]
[1728343353293,0.41095,2433.5,2433.3,0.41097]
[1728343353487,0.41095,2433.5,2433.4,0.41096]
[1728343353687,0.41094,2433.6,2433.5,0.41094]
[1728343354394,0.41094,2433.6,2433.4,0.41095]
[1728343354890,0.41094,2433.6,2433.5,4.57451699]
[1728343354891,3.61874,2433.6,2433.5,4.57451699]
[1728343355093,6.4178,2433.6,2433.0,2.3319]
[1728343355387,0.41099,2433.3,2433.2,4.98997793]
[1728343355793,0.41099,2433.3,2433.2,0.41099]
[1728343355995,0.41099,2433.3,2433.2,4.57898793]
[1728343356494,0.41099,2433.3,2433.1,4.57898793]
[1728343356696,2.4158,2433.9,2433.2,8.6183992]
[1728343356988,0.41092,2433.7,2433.5,0.41093]
[1728343357298,2.4158,2433.9,2433.4,0.41096]
[1728343357299,0.41094,2433.6,2433.4,0.41096]
[1728343357491,0.41094,2433.6,2433.4,2.95586]
[1728343357797,0.41092,2433.7,2433.5,4.82522578]
[1728343357984,0.41093,2433.6,2433.5,4.82522578]
[1728343358186,0.41092,2433.7,2433.6,0.41093]
[1728343358386,0.41093,2433.6,2433.5,7.26611578]
[1728343358890,0.41092,2433.7,2433.5,7.26611578]
[1728343359495,2.4158,2433.9,2433.8,0.4109]
[1728343359681,3.61867,2434.0,2433.5,6.85517578]
[1728343359887,3.61867,2434.0,2433.8,4.64762484]
[1728343360087,0.41087,2434.0,2433.9,2.4409]
[1728343360486,0.41087,2434.0,2433.9,7.08852484]
[1728343361296,0.41087,2434.0,2433.9,4.64762484]
[1728343366302,1.02729,2433.8,2432.9,1.07481815]
[1728343366499,1.02729,2433.8,2433.2,0.41098]
[1728343366500,3.62097,2433.4,2433.2,0.41098]
[1728343366704,3.62096,2433.4,2433.3,4.44110164]
[1728343366908,3.62096,2433.4,2433.2,4.85208164]
[1728343366909,3.62096,2433.4,2433.2,0.41098]
[1728343367298,3.62096,2433.4,2433.0,4.6613]
[1728343367299,3.62096,2433.4,2433.3,4.44110164]
[1728343367605,3.62096,2433.4,2433.2,0.41099]
[1728343367797,0.41099,2433.3,2433.1,4.99277564]
[1728343368104,0.41099,2433.3,2433.1,0.411]
[1728343368402,0.41099,2433.3,2433.2,4.58177564]
[1728343368594,12.4178,2433.3,2432.3,1.07400872]
[1728343368799,0.41105,2432.9,2432.7,0.41108]
[1728343369000,0.41105,2432.9,2432.7,5.04242037]